fUST/lending_fUST_20241216
["ID","MTS","AMOUNT","RATE_DAILY","PERIOD"]
[345543223,1734323443639,-151.0,0.00027944,7]
[345543225,1734323443649,-151.0,0.00027944,7]
[345543227,1734323443663,-151.0,0.00027944,7]
[345543229,1734323443673,-151.0,0.00027944,7]
[345543231,1734323443682,-151.0,0.00027944,7]
[345543233,1734323443692,-1232.315511,0.00027944,7]
[345543235,1734323443702,-1232.315511,0.00027944,7]
[345543237,1734323443712,-151.0,0.00027944,7]
[345543239,1734323443721,-151.0,0.00027944,7]
[345543241,1734323443732,-289.004013,0.00027944,7]
[345543243,1734323443743,-151.0,0.00027944,7]
[345543245,1734323443752,-151.0,0.00027944,7]
[345543247,1734323443762,-151.0,0.00027944,7]
[345543249,1734323443771,-151.0,0.00027944,7]
[345543252,1734323443792,-151.0,0.00027944,7]
[345543253,1734323443801,-164.131626,0.00027944,7]
[345543256,1734323443811,-151.0,0.00027944,7]
[345543257,1734323443819,-151.0,0.00027944,7]
[345543260,1734323443830,-151.0,0.00027944,7]
[345543261,1734323443839,-151.0,0.00027944,7]
[345543263,1734323443848,-856.676752,0.00027944,7]
[345543265,1734323443857,-856.676752,0.00027944,7]
[345543267,1734323443866,-151.0,0.00027944,7]
[345543269,1734323443876,-1371.030753,0.00027944,7]
[345543271,1734323443885,-151.0,0.00027944,7]
[345543273,1734323443894,-1371.030753,0.00027944,7]
[345543275,1734323443904,-414.311672,0.00027944,7]
[345543277,1734323443913,-891.518572,0.00027944,7]
[345543279,1734323443923,-891.518572,0.00027944,7]
[345543281,1734323443932,-725.856956,0.00027944,7]
[345543283,1734323443941,-725.856956,0.00027944,7]
[345543285,1734323443951,-151.0,0.00027944,7]
[345543287,1734323443961,-151.0,0.00027944,7]
[345543288,1734323443970,-151.0,0.00027944,7]
[345543289,1734323443979,-275.283622,0.00027944,7]
[345543290,1734323443989,-151.0,0.00027944,7]
[345543291,1734323443999,-275.283622,0.00027944,7]
[345543292,1734323444008,-151.0,0.00027944,7]
[345543293,1734323444018,-259.74414,0.00027944,7]
[345543294,1734323444030,-259.74414,0.00027944,7]
[345543295,1734323444039,-153.53911,0.00027944,7]
[345543296,1734323444048,-153.53911,0.00027944,7]
[345543297,1734323444058,-151.0,0.00027944,7]
[345543298,1734323444068,-191.110482,0.00027944,7]
[345543299,1734323444078,-191.110482,0.00027944,7]
[345543300,1734323444088,-151.0,0.00027944,7]
[345543301,1734323444097,-704.835194,0.00027944,7]
[345543303,1734323444107,-704.835194,0.00027944,7]
[345543304,1734323444116,-500.0,0.00027944,2]
[345543306,1734323444126,-217.01693158,0.00027944,2]
[345543308,1734323444135,-243.4257234,0.00027944,2]
[345543310,1734323444146,-588.61583578,0.00027944,2]
[345543312,1734323444156,-151.0,0.00027945,7]
[345543314,1734323444165,-207.172544,0.00027945,7]
[345543316,1734323444175,-156.244572,0.00027945,7]
[345543318,1734323444184,-151.0,0.00027945,7]
[345543321,1734323444194,-151.0,0.00027945,7]
[345543323,1734323444204,-500.0,0.00027945,7]
[345543325,1734323444214,-227.701147,0.00027945,7]
[345543326,1734323444224,-227.701147,0.00027945,7]
[345543328,1734323444233,-151.0,0.00027945,7]
[345543331,1734323444243,-151.0,0.00027945,7]
[345543332,1734323444253,-151.0,0.00027945,7]
[345543334,1734323444262,-1232.315511,0.00027945,7]
[345543337,1734323444272,-151.0,0.00027945,7]
[345543339,1734323444283,-337.228978,0.00027945,7]
[345543341,1734323444292,-337.228978,0.00027945,7]
[345543342,1734323444302,-500.0,0.00027945,7]
[345543345,1734323444312,-616.310177,0.00027945,7]
[345543346,1734323444322,-616.310177,0.00027945,7]
[345543348,1734323444331,-616.310177,0.00027945,7]
[345543351,1734323444341,-616.310177,0.00027945,7]
[345543352,1734323444350,-500.0,0.00027945,7]
[345543354,1734323444360,-500.0,0.00027945,7]
[345543356,1734323444370,-151.0,0.00027945,7]
[345543358,1734323444379,-500.0,0.00027945,7]
[345543360,1734323444391,-500.0,0.00027945,7]
[345543362,1734323444400,-151.0,0.00027945,7]
[345543364,1734323444409,-151.0,0.00027945,7]
[345543367,1734323444419,-151.0,0.00027945,7]
[345543368,1734323444428,-151.0,0.00027945,7]
[345543370,1734323444437,-856.676752,0.00027945,7]
[345543373,1734323444447,-856.676752,0.00027945,7]
[345543374,1734323444456,-500.0,0.00027945,7]
[345543377,1734323444465,-174.10327164,0.00027945,7]
[345543378,1734323444475,-503.20692542,0.00027945,7]
[345543380,1734323444484,-151.0,0.00027945,7]
[345543382,1734323444493,-514.1989873,0.00027945,7]
[345543393,1734323444502,-1371.030753,0.00027945,7]
[345543395,1734323444593,-156.591368,0.00027945,7]
[345543397,1734323444602,-414.311672,0.00027945,7]
[345543399,1734323444611,-1371.030753,0.00027945,7]
[345543401,1734323444620,-414.311672,0.00027945,7]
[345543403,1734323444629,-891.518572,0.00027945,7]
[345543405,1734323444638,-500.0,0.00027945,7]
[345543407,1734323444647,-891.518572,0.00027945,7]
[345543409,1734323444661,-505.12273935,0.00027945,7]
[345543411,1734323444670,-725.856956,0.00027945,7]
[345543413,1734323444679,-500.0,0.00027945,7]
[345543415,1734323444689,-725.856956,0.00027945,7]
[345543417,1734323444699,-151.0,0.00027945,7]
[345543418,1734323444708,-507.71909494,0.00027945,7]
[345543421,1734323444717,-151.0,0.00027945,7]
[345543423,1734323444727,-151.0,0.00027945,7]
[345543425,1734323444738,-194.44500215,0.00027945,7]
[345543427,1734323444748,-275.283622,0.00027945,7]
[345543429,1734323444757,-500.0,0.00027945,7]
[345543431,1734323444766,-151.0,0.00027945,7]
[345543433,1734323444775,-275.283622,0.00027945,7]
[345543434,1734323444785,-500.0,0.00027945,7]
[345543436,1734323444795,-500.0,0.00027945,7]
[345543439,1734323444804,-520.65637676,0.00027945,7]
[345543440,1734323444814,-235.891878,0.00027945,7]
[345543442,1734323444824,-235.891878,0.00027945,7]
[345543444,1734323444834,-151.0,0.00027945,7]
[345543447,1734323444843,-259.74414,0.00027945,7]
[345543449,1734323444853,-235.891878,0.00027945,7]
[345543451,1734323444863,-235.891878,0.00027945,7]
[345543453,1734323444872,-500.0,0.00027945,7]
[345543454,1734323444881,-259.74414,0.00027945,7]
[345543456,1734323444891,-500.0,0.00027945,7]
[345543459,1734323444901,-515.91504526,0.00027945,7]
[345543460,1734323444912,-153.53911,0.00027945,7]
[345543462,1734323444922,-153.53911,0.00027945,7]
[345543465,1734323444932,-597.598134,0.00027945,7]
[345543467,1734323444942,-597.598134,0.00027945,7]
[345543469,1734323444951,-597.598134,0.00027945,7]
[345543470,1734323444961,-597.598134,0.00027945,7]
[345543472,1734323444970,-500.0,0.00027945,7]
[345543474,1734323444980,-151.0,0.00027945,7]
[345543476,1734323444989,-177.454704,0.00027945,7]
[345543478,1734323444998,-177.454704,0.00027945,7]
[345543480,1734323445008,-177.454704,0.00027945,7]
[345543482,1734323445018,-177.454704,0.00027945,7]
[345543484,1734323445030,-1305.283138,0.00027945,7]
[345543486,1734323445040,-1305.283138,0.00027945,7]
[345543489,1734323445050,-500.0,0.00027945,7]
[345543490,1734323445059,-1305.283138,0.00027945,7]
[345543493,1734323445069,-1305.283138,0.00027945,7]
[345543495,1734323445079,-1694.81,0.00027945,7]
[345543496,1734323445089,-500.0,0.00027945,7]
[345543498,1734323445098,-500.0,0.00027945,7]
[345543501,1734323445108,-191.110482,0.00027945,7]
[345543503,1734323445117,-500.0,0.00027945,7]
[345543505,1734323445127,-191.110482,0.00027945,7]
[345543507,1734323445137,-500.0,0.00027945,7]
[345543509,1734323445147,-151.0,0.00027945,7]
[345543511,1734323445157,-500.0,0.00027945,7]
[345543513,1734323445166,-500.0,0.00027945,7]
[345543515,1734323445175,-595.96,0.00027945,7]
[345543517,1734323445184,-500.0,0.00027945,7]
[345543519,1734323445195,-500.0,0.00027945,7]
[345543521,1734323445204,-664.79,0.00027945,5]
[345543522,1734323445214,-500.0,0.00027945,7]
[345543524,1734323445224,-500.0,0.00027945,7]
[345543526,1734323445233,-500.0,0.00027945,7]
[345543528,1734323445242,-890.41,0.00027945,7]
[345543530,1734323445252,-68254.04,0.00027945,7]
[345543532,1734323445261,-500.0,0.00027945,7]
[345543534,1734323445270,-500.0,0.00027945,7]
[345543536,1734323445281,-2859.63,0.00027945,7]
[345543538,1734323445293,-835.38,0.00027945,7]
[345543540,1734323445303,-500.0,0.00027945,7]
[345543542,1734323445312,-704.835194,0.00027945,7]
[345543544,1734323445322,-159.69164692,0.00027945,2]
[345543546,1734323445331,-704.835194,0.00027945,7]
[345543549,1734323445342,-1589.14,0.00027945,7]
[345543550,1734323445351,-151.0,0.00027998,7]
[345543553,1734323445360,-151.0,0.00027998,7]
[345543555,1734323445370,-501.56450419,0.00027998,10]
[345543557,1734323445379,-151.0,0.00027999,7]
[345543558,1734323445389,-151.0,0.00027999,7]
[345543561,1734323445399,-236.90843,0.00027999,7]
[345543562,1734323445408,-151.0,0.00028,7]
[345543565,1734323445418,-151.0,0.00028,7]
[345543567,1734323445427,-157.138904,0.00028,7]
[345543569,1734323445437,-1232.315511,0.00028,7]
[345543571,1734323445446,-151.0,0.00028,7]
[345543572,1734323445455,-337.228978,0.00028,7]
[345543575,1734323445464,-337.228978,0.00028,7]
[345543577,1734323445474,-616.310177,0.00028,7]
[345543579,1734323445483,-616.310177,0.00028,7]
[345543581,1734323445493,-151.0,0.00028,7]
[345543583,1734323445502,-151.0,0.00028,7]
[345543585,1734323445511,-151.0,0.00028,7]
[345543587,1734323445520,-1371.030753,0.00028,7]
[345543589,1734323445532,-414.311672,0.00028,7]
[345543591,1734323445541,-1371.030753,0.00028,7]
[345543593,1734323445550,-414.311672,0.00028,7]
[345543595,1734323445560,-891.518572,0.00028,7]
[345543597,1734323445569,-891.518572,0.00028,7]
[345543599,1734323445578,-725.856956,0.00028,7]
[345543600,1734323445588,-725.856956,0.00028,7]
[345543603,1734323445598,-151.0,0.00028,7]
[345543604,1734323445607,-151.0,0.00028,7]
[345543607,1734323445616,-151.0,0.00028,7]
[345543609,1734323445625,-275.283622,0.00028,7]
[345543611,1734323445636,-151.0,0.00028,7]
[345543613,1734323445645,-275.283622,0.00028,7]
[345543614,1734323445655,-151.0,0.00028,7]
[345543617,1734323445669,-259.74414,0.00028,7]
[345543619,1734323445680,-259.74414,0.00028,7]
[345543621,1734323445689,-153.53911,0.00028,7]
[345543623,1734323445699,-153.53911,0.00028,7]
[345543625,1734323445709,-151.0,0.00028,7]
[345543627,1734323445719,-191.110482,0.00028,7]
[345543629,1734323445729,-191.110482,0.00028,7]
[345543631,1734323445739,-151.0,0.00028,7]
[345543633,1734323445748,-146583.48243851,0.00028,2]
[345543657,1734323445970,-461.87554298,0.00027397,7]
[345543659,1734323445984,-61.06619277,0.00027397,7]
[345543661,1734323445994,-537.99964425,0.00028,2]
[345544202,1734323954241,233.803584,0.00013973,2]
[345544221,1734324430822,200.0,0.00024,120]
[345544223,1734324446698,204.0,0.00025,120]
[345544224,1734324470651,200.0,0.00025,120]
[345544271,1734324632194,-233.803584,0.00020447,2]
[345544273,1734324632204,-452.9153962,0.00025292,2]
[345544275,1734324632213,-174.7492,0.00025305,2]
[345544277,1734324632222,-1916.2879674,0.00025492,2]
[345544279,1734324632231,-194.014444,0.00025579,2]
[345544281,1734324632242,-380.0,0.0002581,2]
[345544283,1734324632252,-300.0,0.00026213,2]
[345544285,1734324632261,-154.69225598,0.00026213,2]
[345544287,1734324632273,-145.30774402,0.00026213,2]
[345544289,1734324632282,-19262.1048115,0.00026214,2]
[345544292,1734324632291,-615.71,0.000266,2]
[345544295,1734324632300,-233.803584,0.00026921,2]
[345544297,1734324632309,-462.0,0.00027,2]
[345544299,1734324632319,-2000.0,0.00027,2]
[345544301,1734324632328,-2721.1636346,0.00027075,2]
[345544303,1734324632337,-248.567,0.00027208,2]
[345544305,1734324632346,-533.0,0.00027208,2]
[345544307,1734324632357,-2294.55,0.00027208,2]
[345544309,1734324632367,-2369.0,0.00027208,2]
[345544311,1734324632376,-150.271,0.00027208,2]
[345544313,1734324632386,-500.0,0.00027373,2]
[345544315,1734324632396,-598.10887286,0.00027373,2]
[345544317,1734324632405,-500.0,0.00027373,2]
[345544319,1734324632414,-500.0,0.00027397,7]
[345544321,1734324632423,-244.1132862,0.00027397,7]
[345544323,1734324632432,-153.23205172,0.00027397,7]
[345544325,1734324632441,-601.15777676,0.00027397,7]
[345544327,1734324632450,-503.76886762,0.00027397,7]
[345544329,1734324632459,-507.82168711,0.00027397,7]
[345544331,1734324632468,-502.17527341,0.00027397,7]
[345544333,1734324632478,-502.41702017,0.00027397,7]
[345544335,1734324632488,-502.56034015,0.00027397,7]
[345544337,1734324632498,-500.0,0.00027397,7]
[345544339,1734324632507,-502.86471619,0.00027397,7]
[345544341,1734324632516,-508.77645355,0.00027397,7]
[345544343,1734324632527,-514.86130949,0.00027397,7]
[345544345,1734324632537,-504.07636027,0.00027397,7]
[345544347,1734324632546,-502.20214394,0.00027397,7]
[345544349,1734324632556,-500.0,0.00027397,7]
[345544351,1734324632565,-508.70287873,0.00027397,7]
[345544354,1734324632575,-506.07017051,0.00027397,7]
[345544355,1734324632584,-501.40333634,0.00027397,7]
[345544357,1734324632593,-506.77290603,0.00027397,7]
[345544360,1734324632603,-501.25434197,0.00027397,7]
[345544362,1734324632612,-506.72847248,0.00027397,7]
[345544364,1734324632621,-504.88016012,0.00027397,7]
[345544366,1734324632631,-525.34496766,0.00027397,7]
[345544368,1734324632641,-458.28952561,0.00027397,7]
[345544568,1734324858384,206.738108,0.00013973,2]
[345544569,1734325012280,-206.738108,0.00020447,2]
[345544570,1734325012304,-1841.67827131,0.00024703,2]
[345544571,1734325012327,-6451.58362069,0.00025088,2]
[345544572,1734325206179,150.5,0.00020219,2]
[345544612,1734325825839,500.0,0.00024,60]
[345544725,1734325834852,500.0,0.00024,90]
[345544726,1734325836104,-194.014445,0.00025058,2]
[345544727,1734325836114,-300.0,0.00025499,2]
[345544728,1734325836125,-180.480364,0.00025508,2]
[345544729,1734325836134,-162.99760079,0.00025606,120]
[345544730,1734325836144,-186.823402,0.00025923,2]
[345544731,1734325836153,-300.0,0.00026231,2]
[345544732,1734325836164,-14522.4743213,0.00026232,2]
[345544733,1734325836173,-533.0,0.00026436,2]
[345544734,1734325836184,-2154.0,0.00026436,2]
[345544735,1734325836193,-2369.0,0.00026436,2]
[345544736,1734325836203,-659.223,0.000266,2]
[345544737,1734325836213,-8379.19637333,0.0002669,2]
[345544738,1734325836223,-1153.8618351,0.00026821,2]
[345544739,1734325836233,-206.738108,0.00026921,2]
[345544740,1734325836242,-8379.19637334,0.00026975,2]
[345544741,1734325836252,-1000.0,0.00026999,2]
[345544742,1734325836261,-1000.0,0.00026999,2]
[345544743,1734325836270,-1000.0,0.00026999,2]
[345544744,1734325836280,-1000.0,0.00026999,2]
[345544745,1734325836290,-1000.0,0.00026999,2]
[345544746,1734325836299,-180.77,0.00026999,2]
[345544747,1734325836309,-8155.37206999,0.00026999,2]
[345544748,1734325836319,-114123.27392095,0.00027,2]
[345544749,1734325836328,-152672.57068058,0.00027,120]
[345544759,1734325838384,-188.39,0.00026436,2]
[345544761,1734325838393,-16776.68953952,0.00027,120]
[345544763,1734325838405,-32283.91175692,0.00027,120]
[345544766,1734325838438,-2762.05447715,0.00027,120]
[345544774,1734325838548,-37729.59524943,0.00027,120]
[345544775,1734325838558,-510.0,0.00027,2]
[345544776,1734325838567,-152.0,0.00027,2]
[345544777,1734325838577,-5735.3756604,0.00027075,2]
[345544778,1734325838587,-150.371,0.00027208,2]
[345544779,1734325838597,-1153.86183503,0.00027272,2]
[345544780,1734325838606,-151.0,0.000273,13]
[345544781,1734325838615,-3191.876325,0.00027311,20]
[345544782,1734325838625,-500.0,0.00027373,2]
[345544783,1734325838635,-500.0,0.00027373,2]
[345544784,1734325838645,-160.71051564,0.00027373,2]
[345544785,1734325838656,-502.99118708,0.00027373,2]
[345544786,1734325838665,-250.52793818,0.00027373,2]
[345544787,1734325838675,-160.2098598,0.00027373,2]
[345544788,1734325838685,-500.0,0.00027373,2]
[345544789,1734325838694,-500.0,0.00027389,2]
[345544790,1734325838703,-500.0,0.00027389,2]
[345544791,1734325838713,-500.0,0.00027389,2]
[345544792,1734325838723,-500.0,0.00027389,2]
[345544793,1734325838732,-661.16973424,0.00027389,2]
[345544794,1734325838742,-500.0,0.00027389,2]
[345544795,1734325838751,-500.0,0.00027389,2]
[345544796,1734325838760,-500.0,0.00027389,2]
[345544797,1734325838872,-500.0,0.00027389,2]
[345544798,1734325838882,-500.0,0.00027389,2]
[345544799,1734325838892,-500.0,0.00027389,2]
[345544800,1734325838902,-500.0,0.00027389,2]
[345544801,1734325838911,-500.0,0.00027389,2]
[345544802,1734325838920,-661.16973424,0.00027389,2]
[345544803,1734325838930,-500.0,0.00027389,2]
[345544804,1734325838939,-500.0,0.00027389,2]
[345544805,1734325838949,-500.0,0.00027389,2]
[345544806,1734325838959,-500.0,0.00027389,2]
[345544807,1734325838968,-251.92172742,0.00027389,2]
[345544808,1734325838978,-500.0,0.00027389,2]
[345544809,1734325838987,-500.0,0.00027389,2]
[345544810,1734325838996,-661.16973424,0.00027389,2]
[345544811,1734325839006,-489.61396506,0.00027389,2]
[345544812,1734325839016,-500.0,0.00027389,2]
[345544813,1734325839026,-500.0,0.00027389,2]
[345544814,1734325839036,-500.0,0.00027389,2]
[345544815,1734325839046,-500.0,0.00027389,2]
[345544816,1734325839056,-500.0,0.00027389,2]
[345544817,1734325839066,-500.0,0.00027389,2]
[345544818,1734325839076,-500.0,0.00027389,2]
[345544819,1734325839086,-661.16973424,0.00027389,2]
[345544820,1734325839095,-500.0,0.00027389,2]
[345544821,1734325839105,-500.0,0.00027389,2]
[345544822,1734325839114,-500.0,0.00027389,2]
[345544823,1734325839124,-500.0,0.00027389,2]
[345544824,1734325839134,-500.0,0.00027389,2]
[345544825,1734325839144,-500.0,0.00027389,2]
[345544826,1734325839154,-523.60564276,0.00027389,2]
[345544827,1734325839164,-500.0,0.00027389,2]
[345544828,1734325839173,-661.16973424,0.00027389,2]
[345544829,1734325839183,-500.0,0.00027389,2]
[345544830,1734325839193,-351.69997486,0.00027389,2]
[345544831,1734325839204,-500.0,0.00027389,2]
[345544832,1734325839214,-500.0,0.00027389,2]
[345544833,1734325839223,-500.0,0.00027389,2]
[345544834,1734325839233,-500.0,0.00027389,2]
[345544835,1734325839243,-500.0,0.00027389,2]
[345544836,1734325839253,-473.5216994,0.00027389,2]
[345544837,1734325839263,-500.0,0.00027389,2]
[345544838,1734325839273,-500.0,0.00027389,2]
[345544839,1734325839284,-500.0,0.00027389,2]
[345544840,1734325839294,-500.0,0.00027389,2]
[345544841,1734325839305,-500.0,0.00027389,2]
[345544842,1734325839315,-500.0,0.00027389,2]
[345544843,1734325839325,-500.0,0.00027389,2]
[345544844,1734325839335,-507.26219244,0.00027389,2]
[345544845,1734325839346,-500.0,0.00027389,2]
[345544846,1734325839356,-500.0,0.00027389,2]
[345544847,1734325839366,-500.0,0.00027389,2]
[345544848,1734325839375,-500.0,0.00027389,2]
[345544849,1734325839385,-500.0,0.00027389,2]
[345544850,1734325839395,-500.0,0.00027389,2]
[345544851,1734325839404,-350.0,0.00027389,2]
[345544852,1734325839414,-500.0,0.00027389,2]
[345544853,1734325839424,-661.16973424,0.00027389,2]
[345544854,1734325839437,-500.0,0.00027389,2]
[345544855,1734325839447,-500.0,0.00027389,2]
[345544856,1734325839457,-661.16973424,0.00027389,2]
[345544857,1734325839466,-500.0,0.00027389,2]
[345544858,1734325839478,-500.0,0.00027389,2]
[345544859,1734325839488,-661.16973424,0.00027389,2]
[345544860,1734325839498,-500.0,0.00027389,2]
[345544861,1734325839508,-500.0,0.00027389,2]
[345544862,1734325839519,-500.0,0.00027389,2]
[345544863,1734325839529,-500.0,0.00027389,2]
[345544864,1734325839540,-500.0,0.00027389,2]
[345544865,1734325839550,-500.0,0.00027389,2]
[345544866,1734325839560,-500.0,0.00027389,2]
[345544867,1734325839570,-661.16973424,0.00027389,2]
[345544868,1734325839581,-500.0,0.00027389,2]
[345544869,1734325839590,-500.0,0.00027389,2]
[345544870,1734325839600,-500.0,0.00027389,2]
[345544871,1734325839609,-500.0,0.00027389,2]
[345544872,1734325839619,-500.0,0.00027389,2]
[345544873,1734325839629,-661.16973424,0.00027389,2]
[345544874,1734325839638,-500.0,0.00027389,2]
[345544875,1734325839648,-500.0,0.00027389,2]
[345544876,1734325839658,-500.0,0.00027389,2]
[345544877,1734325839671,-661.16973424,0.00027389,2]
[345544878,1734325839681,-500.0,0.00027389,2]
[345544879,1734325839690,-500.0,0.00027389,2]
[345544880,1734325839699,-661.16973424,0.00027389,2]
[345544881,1734325839709,-500.0,0.00027389,2]
[345544882,1734325839718,-500.0,0.00027389,2]
[345544883,1734325839728,-500.0,0.00027389,2]
[345544884,1734325839737,-661.16973424,0.00027389,2]
[345544885,1734325839747,-500.0,0.00027389,2]
[345544886,1734325839757,-661.16973424,0.00027389,2]
[345544887,1734325839766,-500.0,0.00027389,2]
[345544888,1734325839775,-661.16973424,0.00027389,2]
[345544890,1734325839786,-500.0,0.00027389,2]
[345544891,1734325839796,-661.16973424,0.00027389,2]
[345544892,1734325839805,-661.16973424,0.00027389,2]
[345544893,1734325839815,-500.0,0.00027389,2]
[345544894,1734325839824,-500.0,0.00027389,2]
[345544895,1734325839834,-661.16973424,0.00027389,2]
[345544896,1734325839843,-500.0,0.00027389,2]
[345544897,1734325839853,-661.16973424,0.00027389,2]
[345544898,1734325839863,-315.84758929,0.00027389,2]
[345544900,1734325839872,-661.16973424,0.00027389,2]
[345544902,1734325839882,-500.0,0.00027389,2]
[345544903,1734325839891,-661.16973424,0.00027389,2]
[345544904,1734325839901,-661.16973424,0.00027389,2]
[345544905,1734325839910,-661.16973424,0.00027389,2]
[345544906,1734325839920,-661.16973424,0.00027389,2]
[345544907,1734325839929,-500.0,0.00027389,2]
[345544908,1734325839938,-661.16973424,0.00027389,2]
[345544909,1734325839948,-500.0,0.00027389,2]
[345544910,1734325839957,-500.0,0.00027389,2]
[345544911,1734325839967,-661.16973424,0.00027389,2]
[345544912,1734325839976,-500.0,0.00027389,2]
[345544913,1734325839986,-661.16973424,0.00027389,2]
[345544914,1734325839996,-661.16973424,0.00027389,2]
[345544915,1734325840005,-500.0,0.00027389,2]
[345544916,1734325840015,-661.16973424,0.00027389,2]
[345544917,1734325840025,-500.0,0.00027389,2]
[345544918,1734325840036,-661.16973424,0.00027389,2]
[345544919,1734325840046,-661.16973424,0.00027389,2]
[345544921,1734325840056,-661.16973424,0.00027389,2]
[345544922,1734325840065,-500.0,0.00027389,2]
[345544924,1734325840075,-661.16973424,0.00027389,2]
[345544926,1734325840084,-661.16973424,0.00027389,2]
[345544927,1734325840094,-661.16973424,0.00027389,2]
[345544928,1734325840104,-500.0,0.00027389,2]
[345544929,1734325840114,-661.16973424,0.00027389,2]
[345544931,1734325840124,-661.16973424,0.00027389,2]
[345544933,1734325840134,-661.16973424,0.00027389,2]
[345544934,1734325840144,-661.16973424,0.00027389,2]
[345544935,1734325840153,-661.16973424,0.00027389,2]
[345544936,1734325840163,-661.16973424,0.00027389,2]
[345544938,1734325840173,-661.16973424,0.00027389,2]
[345544940,1734325840182,-661.16973424,0.00027389,2]
[345544941,1734325840192,-661.16973424,0.00027389,2]
[345544942,1734325840202,-661.16973424,0.00027389,2]
[345544943,1734325840212,-661.16973424,0.00027389,2]
[345544944,1734325840222,-661.16973424,0.00027389,2]
[345544945,1734325840230,-661.16973424,0.00027389,2]
[345544946,1734325840240,-661.16973424,0.00027389,2]
[345544947,1734325840250,-597.598134,0.0002739,7]
[345544948,1734325840260,-597.598134,0.0002739,7]
[345544949,1734325840269,-597.598134,0.0002739,7]
[345544950,1734325840279,-597.598134,0.0002739,7]
[345544952,1734325840296,-597.598134,0.0002739,7]
[345544954,1734325840306,-597.598134,0.0002739,7]
[345544955,1734325840315,-891.518572,0.0002739,7]
[345544956,1734325840335,-891.518572,0.0002739,7]
[345544959,1734325840346,-891.518572,0.0002739,7]
[345544960,1734325840356,-891.518572,0.0002739,7]
[345544961,1734325840366,-891.518572,0.0002739,7]
[345544962,1734325840376,-891.518572,0.0002739,7]
[345544963,1734325840386,-235.891878,0.0002739,7]
[345544964,1734325840396,-235.891878,0.0002739,7]
[345544965,1734325840406,-235.891878,0.0002739,7]
[345544966,1734325840415,-235.891878,0.0002739,7]
[345544967,1734325840428,-235.891878,0.0002739,7]
[345544968,1734325840437,-235.891878,0.0002739,7]
[345544969,1734325840447,-235.891878,0.0002739,7]
[345544970,1734325840457,-235.891878,0.0002739,7]
[345544971,1734325840467,-201.05322429,0.00027391,2]
[345544972,1734325840478,-151.0,0.00027391,7]
[345544973,1734325840487,-151.0,0.00027391,7]
[345544974,1734325840498,-151.0,0.00027391,7]
[345544975,1734325840508,-151.0,0.00027391,7]
[345544976,1734325840518,-151.0,0.00027391,7]
[345544977,1734325840527,-151.0,0.00027391,7]
[345544978,1734325840538,-151.0,0.00027391,7]
[345544979,1734325840548,-151.0,0.00027391,7]
[345544980,1734325840558,-151.0,0.00027391,7]
[345544981,1734325840568,-160.158585,0.00027391,7]
[345544982,1734325840577,-151.0,0.00027391,7]
[345544983,1734325840587,-151.0,0.00027391,7]
[345544984,1734325840597,-151.0,0.00027391,7]
[345544985,1734325840607,-151.0,0.00027391,7]
[345544986,1734325840616,-151.0,0.00027391,7]
[345544987,1734325840626,-151.0,0.00027391,7]
[345544988,1734325840636,-151.0,0.00027391,7]